bitfinex/quotes_SOLUSD_20250831
["timestamp","ask_amount","ask_price","bid_price","bid_amount"]
[1756649335314,0.06,202.11,202.1,18.22541538]
[1756649335508,0.06,202.11,202.1,56.96541538]
[1756649335823,0.06,202.11,202.1,57.63541538]
[1756649336226,0.06,202.11,202.1,56.96541538]
[1756649337128,0.06,202.11,202.1,57.63541538]
[1756649337737,0.06,202.11,202.1,23.8434609]
[1756649337943,0.06,202.11,202.1,62.5834609]
[1756649338115,0.06,202.11,202.1,96.5834609]
[1756649338621,0.06,202.11,202.1,57.8434609]
[1756649338823,0.06,202.11,202.1,96.5834609]
[1756649340042,0.06,202.11,202.1,62.5834609]
[1756649340650,1e-08,202.11,202.1,63.07826545]
[1756649343029,1e-08,202.11,202.1,97.07826545]
[1756649343242,1e-08,202.11,202.1,96.5834609]
[1756649344441,1e-08,202.12,202.11,13.59559401]
[1756649344626,1e-08,202.12,202.11,18.90541538]
[1756649345133,1e-08,202.12,202.11,20.70250345]
[1756649345333,1e-08,202.12,202.11,21.38250345]
[1756649345539,0.06,202.14,202.13,39.59559401]
[1756649345850,0.06,202.14,202.13,87.91272651]
[1756649346023,0.06,202.14,202.13,88.59272651]
[1756649346429,0.06,202.14,202.13,90.57483851]
[1756649346830,1e-08,202.14,202.13,90.57483851]
[1756649347343,1e-08,202.16,202.14,13.59559401]
[1756649347540,1e-08,202.16,202.15,56.94541538]
[1756649347742,0.67000001,202.16,202.15,18.22541538]
[1756649347946,0.67000001,202.16,202.15,56.94541538]
[1756649349061,0.67000001,202.16,202.15,95.89223704]
[1756649349236,0.67000001,202.16,202.15,61.89223704]
[1756649349431,0.67000001,202.16,202.15,38.72]
[1756649349656,0.67000001,202.16,202.14,38.72]
[1756649349836,0.67,202.15,202.14,52.31559401]
[1756649350745,0.67,202.15,202.14,13.59559401]
[1756649351056,0.67,202.15,202.14,52.31559401]
[1756649351358,5.29982137,202.15,202.12,38.72]
[1756649351533,5.29982137,202.14,202.12,38.72]
[1756649351735,0.67,202.13,202.12,38.72]
[1756649352353,5.29982137,202.13,202.1,0.03]
[1756649352565,5.29982137,202.13,202.1,38.75]
[1756649352760,4.62982137,202.11,202.1,0.03]
[1756649352932,5.29982137,202.11,202.1,0.03]
[1756649360742,10.24762207,202.11,202.1,0.03]
[1756649364565,5.29982137,202.11,202.1,0.03]
[1756649365237,10.24762207,202.11,202.1,0.03]
[1756649367046,5.29982137,202.11,202.1,0.03]
[1756649367248,44.03982137,202.11,202.1,0.03]
[1756649370570,4.62982137,202.11,202.1,0.03]
[1756649372859,26.0,202.12,202.1,0.03]
[1756649373077,4.62982137,202.11,202.1,0.03]
[1756649375076,5.31982137,202.11,202.1,0.03]
[1756649375466,10.26762207,202.11,202.1,0.03]
[1756649387061,26.0,202.08,202.07,0.03]
[1756649387384,73.97964274,202.08,202.07,0.03]
[1756649387586,79.61817797,202.08,202.07,0.03]
[1756649393399,64.72,202.08,202.07,0.75]
[1756649393585,26.0,202.08,202.07,0.75]
[1756649393786,43.34982137,202.08,202.07,0.75]
[1756649395289,30.94831456,202.09,202.07,0.75]
[1756649395492,43.34982137,202.08,202.07,0.03]
[1756649396077,43.34982137,202.08,202.07,0.75]
[1756649397196,38.72,202.08,202.07,0.75]
[1756649397403,43.34982137,202.08,202.07,0.75]
[1756649397897,43.34982137,202.08,202.07,0.03]
[1756649398397,43.34982137,202.08,202.07,0.75]
[1756649399301,30.62982137,202.08,202.07,0.75]
[1756649399491,69.34982137,202.08,202.07,0.75]
[1756649400287,31.43789594,202.14,202.07,0.75]
[1756649400492,31.43789594,202.14,202.08,13.59559401]
[1756649400695,74.78771731,202.14,202.09,0.72]
[1756649400998,4.62982137,202.11,202.09,0.72]
[1756649402196,31.43789594,202.14,202.1,0.67]
[1756649402501,4.62982137,202.11,202.07,4.97877498]
[1756649402706,4.62982137,202.1,202.07,4.97877498]
[1756649403006,38.72,202.13,202.08,0.67]
[1756649403215,0.66,202.12,202.07,0.03]
[1756649403504,26.0,202.1,202.08,0.67]
[1756649404005,4.62982137,202.09,202.08,0.67]
[1756649405806,26.0,202.1,202.08,0.67]
[1756649406007,4.62982137,202.09,202.08,0.67]
[1756649406296,4.62982137,202.1,202.07,0.03]
[1756649406712,4.62982137,202.1,202.08,0.67]
[1756649407210,0.06,202.11,202.09,13.59559401]
[1756649407386,0.06,202.11,202.1,0.67]
[1756649408183,0.06,202.11,202.1,5.61804552]
[1756649408684,0.06,202.11,202.1,0.67]
[1756649409098,4.68982137,202.11,202.1,0.67]
[1756649411225,0.06,202.11,202.1,19.21363953]
[1756649415894,4.68982137,202.11,202.07,4.659822]
[1756649416096,4.62982137,202.09,202.07,0.03]
[1756649416302,4.62982137,202.09,202.07,0.7]
[1756649417518,0.72,202.11,202.07,0.7]
[1756649417716,4.62982137,202.09,202.07,0.7]
[1756649418203,4.62982137,202.08,202.07,0.7]
[1756649419302,4.62982137,202.08,202.07,0.03]
[1756649419499,5.28982137,202.08,202.07,0.03]
[1756649420098,4.94806548,202.1,202.07,0.03]
[1756649420404,4.62982137,202.08,202.07,0.03]
[1756649421796,5.28982137,202.08,202.07,0.03]
[1756649423515,48.9383566,202.08,202.07,0.03]
[1756649424306,79.56817797,202.08,202.07,0.03]
[1756649424510,82.85562354,202.08,202.07,0.03]
[1756649424707,56.85562354,202.08,202.06,0.03]
[1756649424923,9.25964274,202.07,202.06,0.03]
[1756649425299,18.15548836,202.07,202.06,0.03]
[1756649428909,18.15548836,202.07,202.05,0.03]
[1756649429117,30.62982137,202.05,202.04,1e-08]
[1756649429315,46.6127179,202.05,202.04,1e-08]
[1756649429499,47.2727179,202.05,202.04,1e-08]
[1756649430122,65.81758189,202.05,202.04,1e-08]
[1756649430430,30.62982137,202.03,201.94,0.67]
[1756649430599,30.62982137,202.03,201.98,0.67]
[1756649430799,43.98982137,202.03,201.98,0.67]
[1756649431041,5.28982137,202.03,201.95,18.54729729]
[1756649431209,4.62982137,202.03,202.01,0.7]
[1756649431528,43.32982137,202.03,202.01,0.7]
[1756649431899,43.32982137,202.03,202.01,0.03]
[1756649432415,48.2795813,202.03,202.01,0.03]
[1756649433137,9.5795813,202.03,202.01,0.03]
[1756649433432,48.2795813,202.03,202.01,0.03]
[1756649433940,48.9795813,202.03,202.01,0.03]
[1756649434430,48.2795813,202.03,202.01,0.03]
[1756649435659,48.9795813,202.03,202.01,0.03]
[1756649438118,4.62982137,202.03,202.02,0.69]
[1756649438318,4.62982137,202.03,202.02,0.03]
[1756649443114,9.5795813,202.03,202.02,0.03]
[1756649443320,4.62982137,202.03,202.02,0.03]
[1756649443721,4.62982137,202.03,202.02,0.69]
[1756649444028,4.62982137,202.03,202.02,0.03]
[1756649444945,9.5795813,202.03,202.02,0.03]
[1756649448640,36.21235803,202.04,202.02,0.69]
[1756649449019,4.62982137,202.03,202.02,0.69]
[1756649449235,36.21235803,202.04,202.02,0.03]
[1756649449426,4.62982137,202.03,202.02,0.03]
[1756649449925,4.62982137,202.03,202.02,0.69]
[1756649451264,4.62982137,202.03,202.02,0.03]
[1756649452245,10.2795813,202.03,202.02,0.03]
[1756649452822,9.5795813,202.03,202.02,0.03]
[1756649453252,38.68,202.03,202.02,0.69]
[1756649453554,4.62982137,202.03,202.02,0.69]
[1756649453765,4.62982137,202.03,202.02,0.03]
[1756649455433,9.5795813,202.03,202.02,0.03]
[1756649456459,10.2795813,202.03,202.02,0.03]
[1756649457559,9.5795813,202.03,202.02,0.03]
[1756649458152,9.6395813,202.03,202.02,0.03]
[1756649459748,10.3395813,202.03,202.02,0.03]
[1756649466297,0.06,202.03,202.02,0.69]
[1756649466476,4.68982137,202.03,202.02,0.69]
[1756649467390,0.06,202.03,202.02,0.69]
[1756649467565,0.06,202.03,202.02,18.91541538]
[1756649467973,0.06,202.03,202.02,14.28559401]
[1756649468175,0.06,202.03,202.02,19.23559896]
[1756649468688,0.06,202.03,202.02,14.28559401]
[1756649468876,0.06,202.03,202.02,23.86542033]
[1756649470288,1e-08,202.03,202.02,57.86542033]
[1756649470490,1e-08,202.03,202.02,72.73936333]
[1756649471898,0.06,202.05,202.03,44.22541538]
[1756649472066,0.06,202.05,202.04,62.32988181]
[1756649472269,0.06,202.05,202.04,62.98988181]
[1756649472584,0.06,202.05,202.04,19.20510895]
[1756649472889,0.06,202.05,202.04,62.49493032]
[1756649473563,0.06,202.05,202.04,62.98988181]
[1756649475894,0.06,202.05,202.02,4.65982137]
[1756649476106,0.06,202.05,202.03,13.59559401]
[1756649476271,0.06,202.05,202.02,5.63997948]
[1756649476599,0.06,202.05,202.03,13.59559401]
[1756649477500,0.06,202.05,202.03,18.54533221]
[1756649477683,0.06,202.05,202.03,19.20533221]
[1756649478074,0.06,202.05,202.04,5.28982137]
[1756649478275,0.06,202.05,202.04,0.66]
[1756649478475,0.06,202.05,202.02,0.03]
[1756649478679,5.34982137,202.05,202.02,0.03]
[1756649478886,4.68982137,202.05,202.03,13.59559401]
[1756649479098,0.06,202.05,202.03,13.59559401]
[1756649479984,5.28982137,202.04,202.02,0.03]
[1756649480181,4.62982137,202.04,202.02,0.03]
[1756649480401,5.28982137,202.03,202.02,0.03]
[1756649480808,0.66,202.03,202.02,0.03]
[1756649480991,5.28982137,202.03,202.02,0.03]
[1756649481418,0.66,202.03,202.02,0.03]
[1756649481579,5.28982137,202.03,202.02,0.03]
[1756649484614,10.2395813,202.03,202.02,0.03]
[1756649487904,26.06,202.05,202.02,0.03]
[1756649488095,4.62982137,202.03,202.02,0.03]
[1756649488816,5.28982137,202.03,202.02,0.03]
[1756649490210,30.62982137,202.03,202.02,0.03]
[1756649493320,0.06,202.05,202.02,0.73]
[1756649493502,0.06,202.05,202.04,18.22541538]
[1756649493709,0.06,202.05,202.04,23.87493032]
[1756649496397,0.06,202.05,202.04,57.87493032]
[1756649499334,0.06,202.05,202.04,23.87493032]
[1756649499721,0.06,202.05,202.04,19.24510895]
[1756649499927,0.06,202.05,202.04,62.51493032]
[1756649501029,0.06,202.05,202.04,64.49792632]
[1756649501622,0.06,202.05,202.04,25.85792632]
[1756649501830,0.06,202.05,202.04,64.49792632]
[1756649502306,0.06,202.05,202.04,98.49792632]
[1756649502509,0.06,202.05,202.04,59.85792632]
[1756649502716,0.06,202.05,202.04,98.49792632]
[1756649505027,0.06,202.05,202.04,98.47792632]
[1756649505209,0.06,202.05,202.04,93.84810495]
[1756649505410,0.06,202.05,202.04,98.47792632]
[1756649505903,0.06,202.05,202.04,64.47792632]
[1756649506105,0.06,202.05,202.04,23.17493032]
[1756649506305,0.06,202.05,202.04,57.16510895]
[1756649506722,0.06,202.05,202.04,18.54510895]
[1756649506922,0.06,202.05,202.04,57.16510895]
[1756649507229,0.71,202.05,202.04,52.21559401]
[1756649507429,0.71,202.05,202.04,13.59559401]
[1756649507616,5.33982137,202.05,202.02,0.03]
[1756649507816,4.62982137,202.04,202.02,0.03]
[1756649508238,5.27982137,202.03,202.02,0.03]
[1756649509614,0.06,202.05,202.02,0.03]
[1756649509918,0.06,202.05,202.04,18.22541538]
[1756649510232,0.06,202.05,202.04,18.92541538]
[1756649510420,0.06,202.05,202.04,20.90870638]
[1756649511027,0.06,202.05,202.04,20.52839995]
[1756649511228,0.06,202.05,202.04,25.85822132]
[1756649511534,0.06,202.05,202.04,25.15822132]
[1756649512035,0.06,202.05,202.04,20.52839995]
[1756649512234,0.06,202.05,202.04,25.15822132]
[1756649512423,0.06,202.05,202.04,20.52839995]
[1756649512607,0.06,202.05,202.04,15.57888501]
[1756649513013,0.06,202.05,202.04,13.59559401]
[1756649513215,5.33982137,202.05,202.02,0.03]
[1756649513434,0.65,202.04,202.02,2.013488]
[1756649513636,0.65,202.03,202.02,0.03]
[1756649516036,4.62982137,202.04,202.02,0.03]
[1756649516237,5.27982137,202.03,202.02,0.03]
[1756649521444,10.2295813,202.03,202.02,0.03]
[1756649522734,36.2295813,202.03,202.02,0.03]
[1756649524217,10.2295813,202.03,202.02,0.03]
[1756649527051,12.2141513,202.03,202.02,0.03]
[1756649531573,26.0,201.96,201.83,0.71]
[1756649531747,26.0,201.92,201.85,0.71]
[1756649531947,38.62,201.91,201.85,0.71]
[1756649532159,26.0,201.92,201.85,0.71]
[1756649532358,38.62,201.91,201.85,0.71]
[1756649532559,4.952947,201.9,201.85,0.71]
[1756649532749,38.62,201.91,201.86,0.71]
[1756649533062,26.0,201.88,201.72,4.03804114]
[1756649533249,4.62982137,201.85,201.79,4.62982137]
[1756649533455,4.62982137,201.85,201.81,13.59559401]
[1756649533765,4.62982137,201.9,201.85,13.59559401]
[1756649533967,4.62982137,201.91,201.87,13.59559401]
[1756649534267,39.31,201.93,201.87,0.71]
[1756649534466,4.62982137,201.88,201.87,0.71]
[1756649534764,26.0,201.93,201.87,5.66368306]
[1756649534972,4.62982137,201.9,201.88,0.71]
[1756649535345,4.62982137,201.91,201.89,0.71]
[1756649535570,4.62982137,201.91,201.9,0.71]
[1756649536077,4.62982137,201.91,201.85,4.953683]
[1756649536242,26.0,201.93,201.8,12.3883561]
[1756649536243,4.62982137,201.87,201.86,0.71]
[1756649536447,4.62982137,201.88,201.86,0.71]
[1756649536663,4.62982137,201.9,201.87,4.95368306]
[1756649536971,4.62982137,201.9,201.88,0.71]
[1756649537167,4.62982137,201.9,201.89,0.71]
[1756649538379,4.62982137,201.92,201.89,0.71]
[1756649538554,4.62982137,201.92,201.9,0.71]
[1756649538752,4.62982137,201.92,201.87,4.95368306]
[1756649539078,4.62982137,201.92,201.91,0.71]
[1756649539282,4.62982137,201.92,201.87,4.95368306]
[1756649539485,4.62982137,201.91,201.89,0.71]
[1756649539779,4.62982137,201.91,201.9,0.71]
[1756649540162,36.63123053,201.92,201.9,0.71]
[1756649540366,30.84696434,201.91,201.9,18.22541538]
[1756649541048,30.84696434,201.91,201.9,13.59559401]
[1756649541676,30.84696434,201.91,201.9,18.54854101]
[1756649542955,30.84696434,201.91,201.9,19.25854101]
[1756649543156,30.84696434,201.91,201.9,23.88836238]
[1756649544282,30.84696434,201.91,201.9,38.77263738]
[1756649544582,5.33011977,201.91,201.9,38.77263738]
[1756649545471,5.31982137,202.0,201.9,89.91500488]
[1756649545670,0.69,202.0,201.9,84.57518351]
[1756649545871,0.69,202.0,201.96,13.59559401]
[1756649546077,5.31982137,202.0,201.96,13.59559401]
[1756649546250,4.62982137,201.97,201.93,13.59559401]
[1756649546454,0.69,201.99,201.93,13.59559401]
[1756649546455,4.62982137,201.96,201.93,13.59559401]
[1756649546686,5.31982137,201.96,201.92,13.59559401]
[1756649546861,4.62982137,201.96,201.93,4.95221116]
[1756649547173,4.62982137,201.97,201.93,4.95221116]
[1756649547354,5.31982137,201.97,201.93,4.95221116]
[1756649547979,5.31982137,201.96,201.92,13.59559401]
[1756649548275,5.31982137,201.96,201.92,18.54795111]
[1756649548476,5.31982137,201.95,201.91,38.76]
[1756649548774,5.37982137,201.94,201.91,38.76]
[1756649548960,0.69,201.93,201.91,38.76]
[1756649549161,0.69,201.93,201.91,13.59559401]
[1756649549354,4.68982137,201.94,201.91,13.59559401]
[1756649549555,4.68982137,201.94,201.91,14.30559401]
[1756649549754,0.06,201.94,201.91,14.30559401]
[1756649549955,0.06,201.94,201.91,13.59559401]
[1756649550388,0.06,201.94,201.91,14.30559401]
[1756649550571,0.75,201.94,201.9,9.58273074]
[1756649550881,5.37982137,201.94,201.9,4.95290937]
[1756649551885,0.06,201.94,201.9,5.63290937]
[1756649552178,0.06,201.94,201.9,10.26273074]
[1756649553364,0.06,201.94,201.9,5.63290937]
[1756649554793,0.06,201.94,201.91,0.68]
[1756649554953,0.06,201.94,201.93,4.62982137]
[1756649555379,0.06,201.94,201.92,13.59559401]
[1756649555682,0.06,201.94,201.92,18.90541538]
[1756649556567,0.06,201.94,201.93,4.95221116]
[1756649556979,0.06,201.94,201.93,5.63221116]
[1756649557365,0.06,201.94,201.93,4.95221116]
[1756649558761,0.74,201.94,201.92,13.59559401]
[1756649559083,0.74,201.94,201.92,18.54793982]
[1756649560177,0.06,201.94,201.92,18.54793982]
[1756649560481,5.30982137,201.93,201.9,38.68]
[1756649561374,4.62982137,201.93,201.9,38.68]
[1756649561582,0.06,201.94,201.91,19.22816035]
[1756649561760,0.06,201.94,201.91,23.85798172]
[1756649561960,0.06,201.94,201.91,19.22816035]
[1756649562172,4.62982137,201.92,201.87,0.03]
[1756649562378,4.62982137,201.9,201.87,0.03]
[1756649562575,5.30982137,201.91,201.87,4.98362539]
[1756649562775,0.06,201.94,201.9,4.62982137]
[1756649563495,0.68,201.93,201.89,28.48060801]
[1756649563783,0.68,201.93,201.9,4.952947]
[1756649564569,0.68,201.92,201.9,4.952947]
[1756649564789,4.62982137,201.93,201.9,4.952947]
[1756649564962,0.68,201.92,201.9,4.952947]
[1756649565997,0.06,201.94,201.89,18.54874991]
[1756649566266,5.30982137,201.93,201.89,18.54874991]
[1756649567168,0.68,201.93,201.89,19.22874991]
[1756649567586,0.68,201.93,201.9,0.03]
[1756649569770,0.06,201.94,201.9,0.71]
[1756649569979,0.68,201.93,201.9,0.03]
[1756649570178,5.30982137,201.92,201.9,0.03]
[1756649570775,0.68,201.91,201.9,0.03]
[1756649570976,5.30982137,201.91,201.9,0.03]
[1756649571591,0.68,201.91,201.9,0.03]
[1756649571783,31.30982137,201.91,201.9,0.03]
[1756649572298,10.26252306,201.91,201.9,0.03]
[1756649573092,0.68,201.91,201.9,0.03]
[1756649573489,0.06,201.94,201.9,4.65982137]
[1756649573692,0.06,201.94,201.92,13.59559401]
[1756649573897,0.06,201.94,201.92,18.54784693]
[1756649575100,0.06,201.94,201.92,19.22784693]
[1756649575279,0.06,201.94,201.92,18.54784693]
[1756649575473,0.06,201.94,201.91,13.59559401]
[1756649576089,0.06,201.94,201.91,18.54824688]
[1756649576601,0.06,201.94,201.91,19.22824688]
[1756649576974,0.68,201.93,201.9,0.03]
[1756649577194,5.30982137,201.92,201.9,0.03]
[1756649577580,5.30982137,201.91,201.9,0.03]
[1756649577799,0.68,201.93,201.9,0.03]
[1756649578002,5.30982137,201.92,201.9,0.03]
[1756649578380,0.06,201.94,201.9,0.03]
[1756649578381,4.68982137,201.94,201.9,0.03]
[1756649578886,5.36982137,201.94,201.9,0.03]
[1756649579288,5.30982137,201.93,201.9,0.03]
[1756649579972,0.68,201.93,201.9,0.03]
[1756649580495,5.30982137,201.93,201.9,0.03]
[1756649581076,5.30982137,201.92,201.9,0.03]
[1756649581412,0.68,201.91,201.9,0.03]
[1756649582605,4.62982137,201.92,201.9,0.03]
[1756649582987,5.29982137,201.92,201.9,0.03]
[1756649584005,4.68982137,201.94,201.9,0.69]
[1756649584176,4.68982137,201.94,201.9,0.03]
[1756649584380,0.67,201.93,201.9,0.03]
[1756649584705,0.67,201.93,201.9,4.982947]
[1756649585207,4.68982137,201.94,201.9,4.982947]
[1756649585398,4.68982137,201.94,201.9,5.642947]
[1756649586199,0.67,201.93,201.9,4.982947]
[1756649586498,0.73,201.93,201.9,4.982947]
[1756649586887,5.35982137,201.93,201.9,4.982947]
[1756649588116,0.06,201.93,201.9,4.982947]
[1756649588713,0.73,201.93,201.9,0.03]
[1756649588918,5.35982137,201.93,201.9,0.03]
[1756649589714,0.73,201.93,201.9,0.03]
[1756649589885,5.35982137,201.93,201.9,0.03]
[1756649590087,0.06,201.93,201.9,0.03]
[1756649591210,0.73,201.93,201.9,0.03]
[1756649591917,0.06,201.93,201.91,5.28982137]
[1756649592123,0.06,201.93,201.92,4.95245641]
[1756649592817,0.06,201.93,201.92,14.25559401]
[1756649592991,0.06,201.93,201.92,13.59559401]
[1756649594532,0.06,201.93,201.92,18.54805042]
[1756649594691,0.06,201.93,201.92,19.20805042]
[1756649595389,0.06,201.93,201.92,23.83787179]
[1756649595588,0.06,201.93,201.92,49.83787179]
[1756649596443,0.06,201.93,201.92,88.61787179]
[1756649596718,0.06,201.93,201.92,62.61787179]
[1756649598437,0.06,201.94,201.92,62.61787179]
[1756649598438,0.06,201.94,201.93,13.59559401]
[1756649598590,0.06,201.96,201.93,13.59559401]
[1756649598591,0.06,201.96,201.95,39.59559401]
[1756649598794,0.06,201.96,201.95,44.22541538]
[1756649599018,0.06,201.96,201.95,83.66541538]
[1756649599516,0.06,201.96,201.95,117.66541538]
[1756649600021,0.06,201.98,201.96,13.59559401]
[1756649600232,0.06,201.98,201.97,23.67176879]
[1756649600513,0.73,202.06,202.01,39.59559401]
[1756649600711,0.73,202.06,202.03,13.59559401]
[1756649601445,0.06,202.06,202.03,18.22541538]
[1756649601632,0.06,202.06,202.03,18.88541538]
[1756649602202,0.06,202.06,202.03,25.15846531]
[1756649602496,0.06,202.06,202.03,15.57888401]
[1756649602722,5.35982137,202.06,202.03,15.57888401]
[1756649602929,0.73,202.06,202.03,15.57888401]
[1756649603119,0.73,202.06,202.03,20.52864394]
[1756649603330,0.06,202.06,202.03,25.81846531]
[1756649603845,0.06,202.06,202.03,21.18864394]
[1756649604150,0.73,202.06,202.03,20.52864394]
[1756649604347,0.73,202.05,202.03,23.17517531]
[1756649604641,0.73,202.04,202.03,13.59559401]
[1756649605012,0.06,202.04,202.03,13.59559401]
[1756649605517,0.06,202.04,202.03,18.22541538]
[1756649606464,0.73,202.04,202.03,13.59559401]
[1756649607214,0.06,202.04,202.03,13.59559401]
[1756649608235,0.73,202.04,202.02,52.37559401]
[1756649608437,0.67,202.03,202.02,52.37559401]
[1756649608746,0.67,202.03,202.02,13.59559401]
[1756649609510,0.06,202.04,202.02,13.59559401]
[1756649609735,0.67,202.03,202.02,13.59559401]
[1756649610321,0.67,202.03,202.01,1.983586]
[1756649610526,0.67,202.02,201.99,52.35559401]
[1756649610736,0.67,202.01,201.99,52.35559401]
[1756649611527,0.67,202.03,201.99,56.98541538]
[1756649611842,0.06,202.04,202.02,4.62982137]
[1756649613043,0.06,202.04,202.03,57.69541538]
[1756649614969,0.06,202.04,202.03,62.64517531]
[1756649615124,0.06,202.06,202.04,13.59559401]
[1756649615327,0.06,202.06,202.05,62.13016374]
[1756649615629,0.06,202.06,202.05,62.84016374]
[1756649616035,0.06,202.06,202.05,24.06016374]
[1756649616356,0.06,202.06,202.05,62.84016374]
[1756649617626,0.06,202.06,202.05,67.78943372]
[1756649618034,0.06,202.07,202.06,13.59559401]
[1756649618262,0.06,202.08,202.06,57.56523675]
[1756649618464,0.06,202.08,202.07,62.80011476]
[1756649619134,0.06,202.13,202.08,13.59559401]
[1756649619328,0.06,202.13,202.08,18.93541538]
[1756649619633,0.06,202.13,202.08,23.88395061]
[1756649621451,0.06,202.13,202.08,25.86606261]
[1756649622162,0.75,202.13,202.08,64.58606261]
[1756649622363,0.75,202.13,202.08,63.87606261]
[1756649622766,0.06,202.13,202.08,65.08091613]
[1756649622952,0.75,202.11,202.08,64.39091613]
[1756649623466,0.75,202.09,202.08,15.57770601]
[1756649623689,0.75,202.09,202.08,54.33770601]
[1756649624031,0.75,202.09,202.08,58.96752738]
[1756649625050,0.75,202.09,202.08,54.33770601]
[1756649625453,0.75,202.09,202.08,1.982112]
[1756649625769,0.75,202.09,202.07,38.76]
[1756649625963,0.69,202.08,202.07,52.35559401]
[1756649626643,0.69,202.08,202.07,38.76]
[1756649627159,5.31982137,202.08,202.06,38.76]
[1756649627364,0.69,202.07,202.04,4.689822]
[1756649627566,5.31982137,202.06,202.03,38.76]
[1756649627746,0.69,202.05,202.04,18.22541538]
[1756649628944,0.06,202.09,202.04,23.17493032]
[1756649629158,0.69,202.08,202.07,18.22541538]
[1756649629370,0.69,202.08,202.07,57.00541538]
[1756649629571,0.06,202.09,202.07,57.00541538]
[1756649629775,0.06,202.09,202.08,4.62982137]
[1756649629954,0.75,202.09,202.08,4.62982137]
[1756649630773,0.06,202.09,202.08,18.22541538]
[1756649631074,0.06,202.09,202.08,23.17395061]
[1756649632558,0.06,202.09,202.08,23.88395061]
[1756649633082,0.06,202.09,202.08,25.86665161]
[1756649633470,0.06,202.09,202.08,20.52683024]
[1756649633784,0.06,202.09,202.08,25.15665161]
[1756649634084,0.75,202.09,202.08,13.59559401]
[1756649634282,0.75,202.09,202.08,57.00541538]
[1756649635579,0.75,202.09,202.08,57.32412924]
[1756649635885,0.75,202.09,202.08,61.95395061]
[1756649636378,0.06,202.09,202.08,61.95395061]
[1756649637067,0.06,202.09,202.08,62.66395061]
[1756649637265,0.06,202.09,202.08,63.15880413]
[1756649637469,0.06,202.09,202.08,65.14150513]
[1756649640287,0.06,202.09,202.08,64.43150513]
[1756649640484,0.75,202.09,202.08,63.89665161]
[1756649640672,0.75,202.09,202.08,57.28412924]
[1756649641564,0.75,202.09,202.08,13.59559401]
[1756649641769,0.75,202.09,202.08,57.30412924]
[1756649641972,0.75,202.09,202.08,52.35559401]
[1756649642194,0.74,202.09,202.08,52.35559401]
[1756649643094,0.74,202.09,202.08,38.76]
[1756649643275,5.36982137,202.09,202.07,38.78]
[1756649643475,5.30982137,202.08,202.05,38.78]
[1756649643693,4.62982137,202.06,202.05,0.03]
[1756649644089,5.30982137,202.06,202.05,0.03]
[1756649645875,0.68,202.06,202.05,0.03]
[1756649646481,0.68,202.08,202.05,0.03]
[1756649646681,0.68,202.08,202.05,4.65982137]
[1756649646885,0.68,202.08,202.05,43.47982137]
[1756649647301,0.06,202.09,202.06,18.22541538]
[1756649647492,0.06,202.09,202.08,13.59559401]
[1756649647678,0.06,202.09,202.08,57.02541538]
[1756649647895,0.06,202.09,202.08,61.97395061]
[1756649648096,0.06,202.09,202.08,57.34412924]
[1756649648404,0.06,202.09,202.08,61.97395061]
[1756649650408,0.06,202.09,202.08,59.32683024]
[1756649650600,0.06,202.09,202.08,63.95665161]
[1756649650814,0.06,202.11,202.1,39.59559401]
[1756649650984,0.06,202.11,202.1,83.54021993]
[1756649651316,0.06,202.11,202.1,84.22021993]